[Event "*** SCC Grand Prix: Titled Tuesday Blitz"]
[Site "Chess.com"]
[Date "2020.08.25"]
[Round "1"]
[White "Dannyyi"]
[Black "el-roedor"]
[Result "0-1"]
[WhiteElo "2278"]
[BlackElo "2640"]
[TimeControl "180+1"]
[EndTime "10:08:12 PDT"]
[Termination "el-roedor won on time"]

1. e4 {[%clk 0:03:00.1]} 1... c5 {[%clk 0:02:59]} 2. a3 {[%clk 0:02:54.3]} 2...
g6 {[%clk 0:02:58.5]} 3. h4 {[%clk 0:02:50.8]} 3... h5 {[%clk 0:02:57.9]} 4. Nc3
{[%clk 0:02:47.3]} 4... Bg7 {[%clk 0:02:56.8]} 5. Bc4 {[%clk 0:02:45.6]} 5...
Nc6 {[%clk 0:02:54.9]} 6. d3 {[%clk 0:02:44]} 6... e6 {[%clk 0:02:52.3]} 7. Bg5
{[%clk 0:02:36.1]} 7... Nge7 {[%clk 0:02:50.3]} 8. Qd2 {[%clk 0:02:31.4]} 8...
f6 {[%clk 0:02:48]} 9. Bf4 {[%clk 0:02:15.8]} 9... d5 {[%clk 0:02:44.3]} 10. Ba2
{[%clk 0:02:03.9]} 10... d4 {[%clk 0:02:37.5]} 11. Nce2 {[%clk 0:01:58.1]} 11...
e5 {[%clk 0:02:36.1]} 12. Bh2 {[%clk 0:01:53.9]} 12... Qd6 {[%clk 0:02:30.4]}
13. f4 {[%clk 0:01:49.2]} 13... Be6 {[%clk 0:02:22.4]} 14. Bxe6 {[%clk 0:01:44]}
14... Qxe6 {[%clk 0:02:23.3]} 15. Nf3 {[%clk 0:01:44.6]} 15... Bh6 {[%clk
0:02:19.7]} 16. O-O {[%clk 0:01:20.4]} 16... O-O {[%clk 0:02:11.6]} 17. Qe1
{[%clk 0:01:16.4]} 17... Qg4 {[%clk 0:01:37.9]} 18. Qg3 {[%clk 0:00:23]} 18...
exf4 {[%clk 0:00:58.3]} 19. Nxf4 {[%clk 0:00:19.4]} 19... Bxf4 {[%clk
0:00:57.6]} 20. Qxf4 {[%clk 0:00:19.2]} 20... Qxf4 {[%clk 0:00:50.4]} 21. Bxf4
{[%clk 0:00:19.5]} 21... Rad8 {[%clk 0:00:51.1]} 22. Rf2 {[%clk 0:00:16.9]}
22... Kg7 {[%clk 0:00:45.6]} 23. Nd2 {[%clk 0:00:17.1]} 23... Ne5 {[%clk
0:00:26.3]} 24. Raf1 {[%clk 0:00:16.4]} 24... N7c6 {[%clk 0:00:25.3]} 25. a4
{[%clk 0:00:12.4]} 25... b6 {[%clk 0:00:22.9]} 26. Nc4 {[%clk 0:00:12.4]} 26...
Nxc4 {[%clk 0:00:22.5]} 27. dxc4 {[%clk 0:00:13.3]} 27... Rf7 {[%clk 0:00:21.8]}
28. Kh2 {[%clk 0:00:10.7]} 28... Re8 {[%clk 0:00:21.2]} 29. Re2 {[%clk
0:00:09.5]} 29... Rfe7 {[%clk 0:00:20.2]} 30. Rfe1 {[%clk 0:00:09.1]} 30... Re6
{[%clk 0:00:18.9]} 31. b3 {[%clk 0:00:08.1]} 31... Nb4 {[%clk 0:00:18.5]} 32.
Kg3 {[%clk 0:00:08]} 32... d3 {[%clk 0:00:18.9]} 33. cxd3 {[%clk 0:00:06.9]}
33... Nxd3 {[%clk 0:00:19.8]} 34. Rd1 {[%clk 0:00:06.8]} 34... Nb4 {[%clk
0:00:11.3]} 35. Rd7+ {[%clk 0:00:06.5]} 35... R8e7 {[%clk 0:00:11.9]} 36. Rxe7+
{[%clk 0:00:06.7]} 36... Rxe7 {[%clk 0:00:12.3]} 37. Kf3 {[%clk 0:00:07.4]}
37... Kf7 {[%clk 0:00:12.6]} 38. Bd6 {[%clk 0:00:07.3]} 38... Rd7 {[%clk
0:00:11.1]} 39. e5 {[%clk 0:00:07.6]} 39... fxe5 {[%clk 0:00:11.3]} 40. Bxe5
{[%clk 0:00:08.5]} 40... Nc6 {[%clk 0:00:11.6]} 41. Bf4 {[%clk 0:00:07.6]} 41...
Rd3+ {[%clk 0:00:11.2]} 42. Kf2 {[%clk 0:00:07.5]} 42... Rxb3 {[%clk 0:00:10.1]}
43. Bg5 {[%clk 0:00:05.7]} 43... Rb4 {[%clk 0:00:08.2]} 44. Rd2 {[%clk
0:00:04.6]} 44... Ke6 {[%clk 0:00:07.5]} 45. Re2+ {[%clk 0:00:03.7]} 45... Kf5
{[%clk 0:00:07.5]} 46. Rd2 {[%clk 0:00:01.5]} 46... Rxc4 {[%clk 0:00:07.1]} 47.
Rd6 {[%clk 0:00:02]} 47... Nd4 {[%clk 0:00:05.7]} 48. Rf6+ {[%clk 0:00:01.6]}
48... Ke4 {[%clk 0:00:06.2]} 49. Rxg6 {[%clk 0:00:01.3]} 49... Rxa4 {[%clk
0:00:05.9]} 0-1

[Event "*** SCC Grand Prix: Titled Tuesday Blitz"]
[Site "Chess.com"]
[Date "2020.08.25"]
[Round "1"]
[White "RaunakSadhwani2005"]
[Black "kobemagic"]
[Result "1-0"]
[WhiteElo "2862"]
[BlackElo "2427"]
[TimeControl "180+1"]
[EndTime "10:08:15 PDT"]
[Termination "RaunakSadhwani2005 won on time"]

1. e4 {[%clk 0:02:56.7]} 1... c5 {[%clk 0:02:59.8]} 2. b3 {[%clk 0:02:56.9]}
2... Nc6 {[%clk 0:02:58.1]} 3. Bb2 {[%clk 0:02:57]} 3... d6 {[%clk 0:02:58.4]}
4. Bb5 {[%clk 0:02:54.2]} 4... Nf6 {[%clk 0:02:56.3]} 5. Qe2 {[%clk 0:02:53.2]}
5... Bd7 {[%clk 0:02:54]} 6. f4 {[%clk 0:02:53]} 6... e6 {[%clk 0:02:44.4]} 7.
Nf3 {[%clk 0:02:51.3]} 7... Be7 {[%clk 0:02:43.9]} 8. Nc3 {[%clk 0:02:49.7]}
8... O-O {[%clk 0:02:43.4]} 9. Bxc6 {[%clk 0:02:46.8]} 9... Bxc6 {[%clk
0:02:43.2]} 10. O-O-O {[%clk 0:02:47.4]} 10... b5 {[%clk 0:02:31.8]} 11. e5
{[%clk 0:02:46.2]} 11... dxe5 {[%clk 0:02:24.2]} 12. Nxe5 {[%clk 0:02:45.7]}
12... Bb7 {[%clk 0:02:15.6]} 13. Nxb5 {[%clk 0:02:38.4]} 13... Nd5 {[%clk
0:02:13.4]} 14. d4 {[%clk 0:02:31.2]} 14... Qa5 {[%clk 0:02:03.2]} 15. a4 {[%clk
0:02:21.3]} 15... cxd4 {[%clk 0:01:46.4]} 16. Nxd4 {[%clk 0:02:10.8]} 16... Nxf4
{[%clk 0:01:41.4]} 17. Qe1 {[%clk 0:01:14.1]} 17... Qxe1 {[%clk 0:01:15.5]} 18.
Rhxe1 {[%clk 0:01:15]} 18... Nxg2 {[%clk 0:01:11.9]} 19. Rg1 {[%clk 0:01:15.2]}
19... Nf4 {[%clk 0:01:03.5]} 20. Rdf1 {[%clk 0:00:53.6]} 20... Ng6 {[%clk
0:00:58.9]} 21. Nc4 {[%clk 0:00:50.2]} 21... Rac8 {[%clk 0:00:52.3]} 22. Rd1
{[%clk 0:00:46.7]} 22... Bd5 {[%clk 0:00:50.4]} 23. Ne3 {[%clk 0:00:46.7]} 23...
Be4 {[%clk 0:00:46.7]} 24. Nb5 {[%clk 0:00:44.4]} 24... Bc5 {[%clk 0:00:40.4]}
25. Bd4 {[%clk 0:00:44.3]} 25... a6 {[%clk 0:00:33.8]} 26. Bxc5 {[%clk 0:00:41]}
26... Rxc5 {[%clk 0:00:31.8]} 27. Nd6 {[%clk 0:00:41.6]} 27... Bf3 {[%clk
0:00:19.7]} 28. Rd2 {[%clk 0:00:37.2]} 28... Ba8 {[%clk 0:00:19.4]} 29. c4
{[%clk 0:00:35.7]} 29... Ne5 {[%clk 0:00:17.9]} 30. Rgd1 {[%clk 0:00:34.4]}
30... Rc6 {[%clk 0:00:17]} 31. Kb2 {[%clk 0:00:28]} 31... h6 {[%clk 0:00:16.6]}
32. Nc2 {[%clk 0:00:26.3]} 32... Rb8 {[%clk 0:00:15.6]} 33. Ka2 {[%clk
0:00:22.1]} 33... a5 {[%clk 0:00:12.9]} 34. Nb5 {[%clk 0:00:21.4]} 34... Kh7
{[%clk 0:00:09.4]} 35. Rd8 {[%clk 0:00:20.9]} 35... Rxd8 {[%clk 0:00:08.8]} 36.
Rxd8 {[%clk 0:00:21.8]} 36... Bb7 {[%clk 0:00:08.6]} 37. Rb8 {[%clk 0:00:22.2]}
37... Ba6 {[%clk 0:00:08.6]} 38. Ncd4 {[%clk 0:00:22.6]} 38... Bxb5 {[%clk
0:00:08.4]} 39. axb5 {[%clk 0:00:22.4]} 39... Rd6 {[%clk 0:00:08.2]} 40. Nc2
{[%clk 0:00:17.3]} 40... Rd2 {[%clk 0:00:08.4]} 41. Kb1 {[%clk 0:00:17.9]} 41...
Nd3 {[%clk 0:00:08.4]} 42. Rd8 {[%clk 0:00:14.7]} 42... Rd1+ {[%clk 0:00:08]}
43. Ka2 {[%clk 0:00:15.2]} 43... Nc1+ {[%clk 0:00:07.3]} 44. Kb2 {[%clk
0:00:15.7]} 44... Rxd8 {[%clk 0:00:08]} 45. Kxc1 {[%clk 0:00:16.3]} 45... Rb8
{[%clk 0:00:07.8]} 46. Na3 {[%clk 0:00:15.2]} 46... f5 {[%clk 0:00:08.7]} 47. c5
{[%clk 0:00:15.7]} 47... f4 {[%clk 0:00:09]} 48. Kd1 {[%clk 0:00:14.3]} 48... g5
{[%clk 0:00:09.5]} 49. c6 {[%clk 0:00:14.4]} 49... g4 {[%clk 0:00:09.6]} 50. c7
{[%clk 0:00:14.7]} 50... Rc8 {[%clk 0:00:08.3]} 51. b6 {[%clk 0:00:14.3]} 51...
g3 {[%clk 0:00:08.9]} 52. hxg3 {[%clk 0:00:14.7]} 52... fxg3 {[%clk 0:00:08.8]}
53. Ke2 {[%clk 0:00:14.4]} 53... g2 {[%clk 0:00:08.5]} 54. Kf2 {[%clk
0:00:14.6]} 54... Rg8 {[%clk 0:00:08]} 55. Kg1 {[%clk 0:00:14.9]} 55... Kg6
{[%clk 0:00:01.8]} 56. b7 {[%clk 0:00:14.9]} 1-0

[Event "*** SCC Grand Prix: Titled Tuesday Blitz"]
[Site "Chess.com"]
[Date "2020.08.25"]
[Round "1"]
[White "geordie_derraugh"]
[Black "Gabrielian_Artur"]
[Result "0-1"]
[WhiteElo "2368"]
[BlackElo "2708"]
[TimeControl "180+1"]
[EndTime "10:08:15 PDT"]
[Termination "Gabrielian_Artur won on time"]

1. e4 {[%clk 0:03:00.9]} 1... c5 {[%clk 0:02:59.8]} 2. Nf3 {[%clk 0:02:59.9]}
2... d6 {[%clk 0:02:59.9]} 3. Bb5+ {[%clk 0:02:59.3]} 3... Nd7 {[%clk
0:02:59.5]} 4. d4 {[%clk 0:02:58.8]} 4... cxd4 {[%clk 0:02:59.1]} 5. Qxd4 {[%clk
0:02:58.4]} 5... a6 {[%clk 0:02:59.5]} 6. Bxd7+ {[%clk 0:02:57.9]} 6... Bxd7
{[%clk 0:03:00.4]} 7. c4 {[%clk 0:02:57.5]} 7... Nf6 {[%clk 0:02:59.9]} 8. Nc3
{[%clk 0:02:56.9]} 8... g6 {[%clk 0:03:00.1]} 9. e5 {[%clk 0:02:44.2]} 9... dxe5
{[%clk 0:02:58.6]} 10. Nxe5 {[%clk 0:02:45.1]} 10... Bg7 {[%clk 0:02:58.6]} 11.
Nxd7 {[%clk 0:02:44.1]} 11... Qxd7 {[%clk 0:02:55]} 12. Qxd7+ {[%clk 0:02:35.7]}
12... Kxd7 {[%clk 0:02:33.7]} 13. Na4 {[%clk 0:02:06.2]} 13... Kc6 {[%clk
0:02:33.2]} 14. Be3 {[%clk 0:02:01.7]} 14... Ng4 {[%clk 0:02:13.4]} 15. Rc1
{[%clk 0:01:15.2]} 15... Nxe3 {[%clk 0:02:08.9]} 16. fxe3 {[%clk 0:01:16.1]}
16... Rhd8 {[%clk 0:01:49.3]} 17. Ke2 {[%clk 0:01:16]} 17... Rd7 {[%clk
0:01:46.1]} 18. Rhd1 {[%clk 0:01:12.1]} 18... Rad8 {[%clk 0:01:44.3]} 19. Rxd7
{[%clk 0:01:10.4]} 19... Rxd7 {[%clk 0:01:45.2]} 20. Rc2 {[%clk 0:01:07.5]}
20... f5 {[%clk 0:01:43]} 21. Nc3 {[%clk 0:01:07]} 21... e6 {[%clk 0:01:42.3]}
22. b4 {[%clk 0:01:01.8]} 22... Be5 {[%clk 0:01:20.3]} 23. g3 {[%clk 0:00:58.8]}
23... h5 {[%clk 0:01:19]} 24. a4 {[%clk 0:00:58.5]} 24... h4 {[%clk 0:01:17.8]}
25. gxh4 {[%clk 0:00:39]} 25... Rh7 {[%clk 0:01:16.9]} 26. b5+ {[%clk
0:00:39.2]} 26... Kc5 {[%clk 0:01:14.1]} 27. bxa6 {[%clk 0:00:20.3]} 27... bxa6
{[%clk 0:01:13]} 28. Nb1 {[%clk 0:00:17.2]} 28... Rxh4 {[%clk 0:01:04.6]} 29.
Nd2 {[%clk 0:00:17.1]} 29... Rxh2+ {[%clk 0:00:58.8]} 30. Kd3 {[%clk 0:00:17.2]}
30... g5 {[%clk 0:00:28.3]} 31. Rc1 {[%clk 0:00:16.8]} 31... g4 {[%clk
0:00:24.9]} 32. Nb3+ {[%clk 0:00:15.7]} 32... Kb4 {[%clk 0:00:23.5]} 33. Nd4
{[%clk 0:00:10]} 33... Bxd4 {[%clk 0:00:22]} 34. Kxd4 {[%clk 0:00:10.3]} 34...
Rd2+ {[%clk 0:00:20]} 35. Ke5 {[%clk 0:00:10.2]} 35... Re2 {[%clk 0:00:19.2]}
36. Kxe6 {[%clk 0:00:09.9]} 36... f4 {[%clk 0:00:19.4]} 37. c5 {[%clk
0:00:08.1]} 37... Rxe3+ {[%clk 0:00:18.4]} 38. Kf5 {[%clk 0:00:07.9]} 38... f3
{[%clk 0:00:17.5]} 39. Kxg4 {[%clk 0:00:07.8]} 39... f2 {[%clk 0:00:17.1]} 40.
Rf1 {[%clk 0:00:04.4]} 40... Kxc5 {[%clk 0:00:15.8]} 41. Rxf2 {[%clk 0:00:04.6]}
41... a5 {[%clk 0:00:15.5]} 42. Rf4 {[%clk 0:00:03.4]} 42... Rb3 {[%clk
0:00:14.6]} 43. Kf5 {[%clk 0:00:03]} 43... Rb4 {[%clk 0:00:14.7]} 44. Rf1 {[%clk
0:00:03.2]} 44... Rxa4 {[%clk 0:00:15]} 45. Ke5 {[%clk 0:00:03.2]} 45... Rc4
{[%clk 0:00:14.8]} 46. Ra1 {[%clk 0:00:03.2]} 46... a4 {[%clk 0:00:15]} 47. Ke6
{[%clk 0:00:01.9]} 47... Re4+ {[%clk 0:00:13.8]} 48. Kf5 {[%clk 0:00:02.1]}
48... Rc4 {[%clk 0:00:13.1]} 49. Ke5 {[%clk 0:00:02.1]} 49... Rh4 {[%clk
0:00:12.4]} 50. Rb1 {[%clk 0:00:02.6]} 50... Kc4 {[%clk 0:00:12.2]} 51. Rb8
{[%clk 0:00:02.6]} 51... Kc3 {[%clk 0:00:12.2]} 52. Kd5 {[%clk 0:00:02.1]} 52...
a3 {[%clk 0:00:11.9]} 53. Rc8+ {[%clk 0:00:02.2]} 53... Kb3 {[%clk 0:00:11.9]}
54. Rb8+ {[%clk 0:00:02.3]} 54... Rb4 {[%clk 0:00:12]} 55. Rh8 {[%clk
0:00:02.4]} 55... a2 {[%clk 0:00:12.3]} 56. Rh3+ {[%clk 0:00:02.3]} 56... Ka4
{[%clk 0:00:11.7]} 0-1

[Event "*** SCC Grand Prix: Titled Tuesday Blitz"]
[Site "Chess.com"]
[Date "2020.08.25"]
[Round "1"]
[White "alexgo05"]
[Black "Bulldog167"]
[Result "1/2-1/2"]
[WhiteElo "2358"]
[BlackElo "2675"]
[TimeControl "180+1"]
[EndTime "10:08:15 PDT"]
[Termination "Game drawn by repetition"]

1. e4 {[%clk 0:03:00.9]} 1... e5 {[%clk 0:02:58.5]} 2. Nf3 {[%clk 0:03:01.1]}
2... d6 {[%clk 0:02:58.8]} 3. d4 {[%clk 0:03:00.7]} 3... exd4 {[%clk 0:02:59.7]}
4. Nxd4 {[%clk 0:03:01.3]} 4... Nf6 {[%clk 0:02:59.4]} 5. Nc3 {[%clk 0:03:00.1]}
5... Be7 {[%clk 0:03:00]} 6. Bf4 {[%clk 0:02:59.2]} 6... O-O {[%clk 0:03:00]} 7.
Qd2 {[%clk 0:02:58.3]} 7... c6 {[%clk 0:03:00.6]} 8. O-O-O {[%clk 0:02:55.9]}
8... b5 {[%clk 0:03:01.1]} 9. f3 {[%clk 0:02:54.1]} 9... b4 {[%clk 0:02:58]} 10.
Nb1 {[%clk 0:02:49.3]} 10... c5 {[%clk 0:02:43.2]} 11. Nb5 {[%clk 0:02:35.7]}
11... Nc6 {[%clk 0:02:35.4]} 12. Nxd6 {[%clk 0:02:22.8]} 12... Nd4 {[%clk
0:02:32.1]} 13. Nxc8 {[%clk 0:02:17.4]} 13... Rxc8 {[%clk 0:02:30.2]} 14. Bc4
{[%clk 0:02:12.4]} 14... Nd7 {[%clk 0:02:24.4]} 15. c3 {[%clk 0:02:07.9]} 15...
Nb6 {[%clk 0:02:23.8]} 16. Ba6 {[%clk 0:02:04.2]} 16... Rc6 {[%clk 0:02:21.8]}
17. Bb7 {[%clk 0:01:57.9]} 17... Rg6 {[%clk 0:02:16.9]} 18. cxd4 {[%clk
0:01:55.9]} 18... Nc4 {[%clk 0:02:04.6]} 19. Qd3 {[%clk 0:01:49.2]} 19... Bg5
{[%clk 0:01:53.4]} 20. g3 {[%clk 0:01:33.1]} 20... Bxf4+ {[%clk 0:01:44]} 21.
gxf4 {[%clk 0:01:33.3]} 21... Na5 {[%clk 0:01:44.6]} 22. Bd5 {[%clk 0:01:32.1]}
22... c4 {[%clk 0:01:43.6]} 23. Bxc4 {[%clk 0:01:24.5]} 23... Nxc4 {[%clk
0:01:38.9]} 24. Qxc4 {[%clk 0:01:22.8]} 24... Qb6 {[%clk 0:01:27.6]} 25. Kd2
{[%clk 0:00:54.1]} 25... Rg2+ {[%clk 0:01:21.5]} 26. Ke3 {[%clk 0:00:52.7]}
26... Rxb2 {[%clk 0:01:18.3]} 27. Rc1 {[%clk 0:00:50.5]} 27... b3 {[%clk
0:01:07]} 28. a3 {[%clk 0:00:36.7]} 28... Ra2 {[%clk 0:00:56.1]} 29. Nc3 {[%clk
0:00:29]} 29... Rxa3 {[%clk 0:00:50.2]} 30. Ra1 {[%clk 0:00:29.6]} 30... Rxa1
{[%clk 0:00:48.2]} 31. Rxa1 {[%clk 0:00:29.2]} 31... h6 {[%clk 0:00:44.5]} 32.
Rb1 {[%clk 0:00:28.2]} 32... Rb8 {[%clk 0:00:43.6]} 33. Nd5 {[%clk 0:00:28.6]}
33... Qa5 {[%clk 0:00:40.7]} 34. Ne7+ {[%clk 0:00:21.5]} 34... Kh7 {[%clk
0:00:38.1]} 35. Nc6 {[%clk 0:00:08.4]} 35... Qa2 {[%clk 0:00:33.7]} 36. Qd3
{[%clk 0:00:05.4]} 36... Rb6 {[%clk 0:00:21.6]} 37. e5+ {[%clk 0:00:06]} 37...
Kg8 {[%clk 0:00:19.8]} 38. d5 {[%clk 0:00:06.9]} 38... Qa4 {[%clk 0:00:10.9]}
39. d6 {[%clk 0:00:05]} 39... Qxc6 {[%clk 0:00:05.1]} 40. d7 {[%clk 0:00:05.6]}
40... Qc5+ {[%clk 0:00:05.5]} 41. Ke2 {[%clk 0:00:05.4]} 41... Rb8 {[%clk
0:00:04]} 42. d8=Q+ {[%clk 0:00:05.8]} 42... Rxd8 {[%clk 0:00:04.9]} 43. Qxd8+
{[%clk 0:00:06.4]} 43... Kh7 {[%clk 0:00:05.8]} 44. Qd3+ {[%clk 0:00:05.8]}
44... Kg8 {[%clk 0:00:06.3]} 45. Rxb3 {[%clk 0:00:05.3]} 45... Qg1 {[%clk
0:00:07]} 46. Qd8+ {[%clk 0:00:04.3]} 46... Kh7 {[%clk 0:00:07.2]} 47. Qd3+
{[%clk 0:00:04.9]} 47... g6 {[%clk 0:00:07.7]} 48. Qe3 {[%clk 0:00:03.7]} 48...
Qxh2+ {[%clk 0:00:06]} 49. Qf2 {[%clk 0:00:04.3]} 49... Qxf4 {[%clk 0:00:06.2]}
50. Rb7 {[%clk 0:00:03.1]} 50... Qc4+ {[%clk 0:00:05.4]} 51. Ke1 {[%clk
0:00:02.2]} 51... Qc1+ {[%clk 0:00:05.6]} 52. Ke2 {[%clk 0:00:02.2]} 52... Qc4+
{[%clk 0:00:06.3]} 53. Ke1 {[%clk 0:00:02.4]} 53... Qc1+ {[%clk 0:00:06.1]} 54.
Ke2 {[%clk 0:00:02.9]} 54... Qc4+ {[%clk 0:00:02.8]} 1/2-1/2

[Event "*** SCC Grand Prix: Titled Tuesday Blitz"]
[Site "Chess.com"]
[Date "2020.08.25"]
[Round "1"]
[White "MaxLeto"]
[Black "Gusarov91"]
[Result "0-1"]
[WhiteElo "2306"]
[BlackElo "2643"]
[TimeControl "180+1"]
[EndTime "10:08:17 PDT"]
[Termination "Gusarov91 won on time"]

1. g4 {[%clk 0:03:00]} 1... d5 {[%clk 0:02:54.9]} 2. Bg2 {[%clk 0:02:59.3]} 2...
c6 {[%clk 0:02:55.3]} 3. g5 {[%clk 0:02:58.8]} 3... e5 {[%clk 0:02:55]} 4. d4
{[%clk 0:02:58.5]} 4... e4 {[%clk 0:02:53.4]} 5. c4 {[%clk 0:02:57.7]} 5... Bb4+
{[%clk 0:02:51.6]} 6. Nc3 {[%clk 0:02:56.9]} 6... Ne7 {[%clk 0:02:50.9]} 7. Qb3
{[%clk 0:02:55.6]} 7... a5 {[%clk 0:02:45.4]} 8. Bf4 {[%clk 0:02:45.3]} 8... Be6
{[%clk 0:02:36.8]} 9. c5 {[%clk 0:02:36.8]} 9... Nd7 {[%clk 0:02:26.4]} 10. h4
{[%clk 0:02:17.7]} 10... b6 {[%clk 0:02:25.9]} 11. a3 {[%clk 0:02:11.2]} 11...
Bxc3+ {[%clk 0:02:12.4]} 12. Qxc3 {[%clk 0:02:12.1]} 12... b5 {[%clk 0:01:57.4]}
13. h5 {[%clk 0:02:07.6]} 13... g6 {[%clk 0:01:41.8]} 14. Nh3 {[%clk 0:01:37.6]}
14... gxh5 {[%clk 0:01:37.6]} 15. Bd2 {[%clk 0:01:10.5]} 15... Bxh3 {[%clk
0:01:33.2]} 16. Rxh3 {[%clk 0:01:06]} 16... h4 {[%clk 0:01:31]} 17. Rxh4 {[%clk
0:01:02.6]} 17... Ng6 {[%clk 0:01:31.1]} 18. Rh6 {[%clk 0:01:00.3]} 18... Ndf8
{[%clk 0:01:30.1]} 19. Qg3 {[%clk 0:00:50.5]} 19... Ne6 {[%clk 0:01:23.2]} 20.
Be3 {[%clk 0:00:43.6]} 20... Qb8 {[%clk 0:01:16.3]} 21. Qg4 {[%clk 0:00:36.8]}
21... Nef4 {[%clk 0:01:12]} 22. Bh1 {[%clk 0:00:30.8]} 22... Qc8 {[%clk
0:01:10.3]} 23. Qg3 {[%clk 0:00:26.7]} 23... Qf5 {[%clk 0:01:06.9]} 24. b3
{[%clk 0:00:20.7]} 24... a4 {[%clk 0:01:06.6]} 25. b4 {[%clk 0:00:20.5]} 25...
Rc8 {[%clk 0:01:05]} 26. Kd2 {[%clk 0:00:20.5]} 26... Ne6 {[%clk 0:00:56.6]} 27.
Rg1 {[%clk 0:00:19.8]} 27... Ng7 {[%clk 0:00:55.1]} 28. Bg2 {[%clk 0:00:16.1]}
28... Qd7 {[%clk 0:00:51.3]} 29. Bh3 {[%clk 0:00:15.9]} 29... Ne6 {[%clk
0:00:51.6]} 30. Qg4 {[%clk 0:00:08.9]} 30... Rd8 {[%clk 0:00:48.1]} 31. Qh5
{[%clk 0:00:08.3]} 31... Ngf8 {[%clk 0:00:44.8]} 32. Rg4 {[%clk 0:00:06]} 32...
Ng7 {[%clk 0:00:42.3]} 33. Qh4 {[%clk 0:00:02.6]} 33... Nf5 {[%clk 0:00:42.4]}
34. Rf4 {[%clk 0:00:02.4]} 34... Nxh4 {[%clk 0:00:40.6]} 35. Bxd7+ {[%clk
0:00:03.3]} 35... Rxd7 {[%clk 0:00:40.2]} 36. Rfxh4 {[%clk 0:00:04.2]} 36... Rg8
{[%clk 0:00:39.6]} 37. Rxc6 {[%clk 0:00:04.2]} 37... Rg6 {[%clk 0:00:36.2]} 38.
Rb6 {[%clk 0:00:03.7]} 38... Rxb6 {[%clk 0:00:35.4]} 39. cxb6 {[%clk 0:00:04.6]}
39... Rb7 {[%clk 0:00:35.4]} 40. Rh6 {[%clk 0:00:04.8]} 40... Ng6 {[%clk
0:00:35.4]} 41. Rxh7 {[%clk 0:00:04.8]} 41... Rxb6 {[%clk 0:00:36]} 42. Rg7
{[%clk 0:00:04.7]} 42... Kf8 {[%clk 0:00:35.7]} 43. Rh7 {[%clk 0:00:05.2]} 43...
Rc6 {[%clk 0:00:35.9]} 44. Rh1 {[%clk 0:00:05.7]} 44... Ke7 {[%clk 0:00:33.4]}
45. f3 {[%clk 0:00:05.9]} 45... exf3 {[%clk 0:00:31.9]} 46. exf3 {[%clk
0:00:06.8]} 46... Ke6 {[%clk 0:00:30.4]} 47. Re1 {[%clk 0:00:07.2]} 47... Kf5
{[%clk 0:00:30.4]} 48. Kd3 {[%clk 0:00:07.7]} 48... Rc4 {[%clk 0:00:30]} 49. Bd2
{[%clk 0:00:06.8]} 49... Rc8 {[%clk 0:00:27.3]} 50. Re2 {[%clk 0:00:04.5]} 50...
f6 {[%clk 0:00:26.9]} 51. gxf6 {[%clk 0:00:04.3]} 51... Kxf6 {[%clk 0:00:27.4]}
52. Rg2 {[%clk 0:00:04.8]} 52... Rh8 {[%clk 0:00:21.1]} 53. Rg5 {[%clk
0:00:04.7]} 53... Rh3 {[%clk 0:00:21.3]} 54. Rxd5 {[%clk 0:00:04.5]} 54... Rxf3+
{[%clk 0:00:20.9]} 55. Ke4 {[%clk 0:00:04.8]} 55... Rxa3 {[%clk 0:00:21.5]} 56.
Rxb5 {[%clk 0:00:04.2]} 56... Ra2 {[%clk 0:00:21.9]} 57. Rb6+ {[%clk 0:00:04.2]}
57... Kf7 {[%clk 0:00:21.6]} 58. Bg5 {[%clk 0:00:03.3]} 58... a3 {[%clk
0:00:20.6]} 59. Rb7+ {[%clk 0:00:03.1]} 59... Ke8 {[%clk 0:00:19.9]} 60. Kf5
{[%clk 0:00:02.5]} 60... Nf8 {[%clk 0:00:18.3]} 0-1